bitfinex/quotes_BTCUSD_20260104
["timestamp","ask_amount","ask_price","bid_price","bid_amount"]
[1767532182766,0.04675703,91128.0,91123.0,0.06584482]
[1767532182966,0.04675703,91128.0,91125.0,0.01097393]
[1767532184688,0.01097345,91129.0,91125.0,0.01097393]
[1767532184895,0.0268138,91130.0,91125.0,0.01097393]
[1767532185118,0.06583941,91131.0,91125.0,0.01097393]
[1767532185119,0.04265321,91131.0,91125.0,0.01097393]
[1767532185541,0.06584035,91130.0,91125.0,0.01097393]
[1767532188066,0.01097345,91129.0,91125.0,0.01097393]
[1767532188221,0.04675703,91128.0,91123.0,0.06584388]
[1767532188426,0.01097345,91129.0,91123.0,0.06584388]
[1767532188631,0.0268138,91130.0,91126.0,0.03335479]
[1767532189172,0.05773048,91129.0,91124.0,0.01584372]
[1767532189375,0.03778713,91130.0,91123.0,0.0316876]
[1767532189660,0.01097345,91129.0,91125.0,0.01097393]
[1767532189984,0.06584095,91129.0,91122.0,0.01108262]
[1767532190135,0.01097345,91129.0,91124.0,0.05487025]
[1767532190507,0.03778713,91130.0,91125.0,0.01097393]
[1767532191349,0.03778713,91130.0,91124.0,0.0658443]
[1767532191549,0.01097345,91129.0,91124.0,0.05486977]
[1767532191750,0.01097345,91129.0,91124.0,0.01101787]
[1767532192653,0.06460092,91131.0,91129.0,0.04570465]
[1767532192865,0.06460092,91131.0,91123.0,0.01097417]
[1767532192866,0.000999,91129.0,91123.0,0.01097417]
[1767532193022,0.01097345,91129.0,91124.0,0.06584389]
[1767532193224,0.01097357,91128.0,91124.0,0.01097405]
[1767532193577,0.06584098,91129.0,91124.0,0.01097405]
[1767532193779,0.01097333,91130.0,91126.0,0.01097381]
[1767532194282,0.00973379,91131.0,91126.0,0.0658427]
[1767532195615,0.00973379,91131.0,91127.0,0.01097369]
[1767532195754,0.06459991,91131.0,91126.0,0.0658427]
[1767532195954,0.01097333,91130.0,91126.0,0.01097381]
[1767532196178,0.01097345,91129.0,91125.0,0.01097393]
[1767532196517,0.01097333,91130.0,91126.0,0.01097381]
[1767532197718,0.04675703,91129.0,91125.0,0.02681715]
[1767532197950,0.01097333,91130.0,91123.0,0.00893828]
[1767532198184,0.01097333,91130.0,91125.0,0.05486941]
[1767532198373,0.01097333,91130.0,91126.0,0.01097381]
[1767532199342,0.02557324,91131.0,91130.0,0.04570465]
[1767532199470,0.01097297,91133.0,91126.0,0.01097381]
[1767532199677,0.04675703,91132.0,91126.0,0.01097381]
[1767532199876,0.04675703,91130.0,91126.0,0.01097381]
[1767532201180,0.04675703,91130.0,91126.0,0.06584242]
[1767532201814,0.04675703,91130.0,91126.0,0.03053185]
[1767532202019,0.04675703,91130.0,91127.0,0.06584214]
[1767532202341,0.04575803,91130.0,91124.0,0.01097405]
[1767532202687,0.04575803,91130.0,91127.0,0.01097369]
[1767532203645,0.04575803,91130.0,91126.0,0.06584241]
[1767532204093,0.06583939,91131.0,91126.0,0.06584241]
[1767532204499,0.01583939,91131.0,91127.0,0.04610454]
[1767532204867,0.06583972,91132.0,91127.0,0.04610454]
[1767532205178,0.01097321,91131.0,91127.0,0.05707823]
[1767532205350,0.05486607,91131.0,91127.0,0.04610454]
[1767532205573,0.06583928,91131.0,91126.0,0.01097381]
[1767532206579,0.06583928,91131.0,91126.0,0.06584268]
[1767532206909,0.06583906,91132.0,91127.0,0.06584214]
[1767532207302,0.06583906,91132.0,91126.0,0.04098633]
[1767532208026,0.01097309,91132.0,91128.0,0.01097357]
[1767532208554,0.01097321,91131.0,91126.0,0.05196014]
[1767532208798,0.01097321,91131.0,91127.0,0.01097369]
[1767532209203,0.000999,91127.0,91126.0,0.05196014]
[1767532209406,0.04718217,91130.0,91126.0,0.01097381]
[1767532209604,0.04718217,91130.0,91123.0,0.21948355]
[1767532209819,0.01097321,91131.0,91126.0,0.05486861]
[1767532209994,0.06583938,91131.0,91126.0,0.06584242]
[1767532210192,0.01097321,91131.0,91127.0,0.01097369]
[1767532210401,0.01090439,91131.0,91127.0,0.00997469]
[1767532210600,0.01577055,91131.0,91126.0,0.01097381]
[1767532210829,0.0268119,91132.0,91127.0,0.05707823]
[1767532211002,0.0268119,91132.0,91127.0,0.04610454]
[1767532211659,0.0268119,91132.0,91127.0,0.11194668]
[1767532211985,0.0268119,91132.0,91127.0,0.05707823]
[1767532212924,0.06583783,91133.0,91127.0,0.11194654]
[1767532213125,0.05486566,91132.0,91127.0,0.11194654]
[1767532213329,0.06583875,91132.0,91127.0,0.05707823]
[1767532213741,0.01097321,91131.0,91127.0,0.05707823]
[1767532213965,0.01090438,91131.0,91127.0,0.05707823]
[1767532214503,0.06583875,91132.0,91127.0,0.11194652]
[1767532216660,0.06583858,91132.0,91128.0,0.01097357]
[1767532216856,0.01097309,91132.0,91128.0,0.01097357]
[1767532217760,0.01090427,91132.0,91128.0,0.01097357]
[1767532217926,0.01090427,91132.0,91127.0,0.09985236]
[1767532218460,0.01090427,91132.0,91128.0,0.01097357]
[1767532219407,0.06576987,91132.0,91127.0,0.11082605]
[1767532219809,0.04718217,91130.0,91100.0,0.05860454]
[1767532220092,0.06576987,91132.0,91122.0,0.04621287]
[1767532220231,0.06576987,91132.0,91126.0,0.05486856]
[1767532220945,0.06576987,91132.0,91127.0,0.05486832]
[1767532221263,0.06576987,91132.0,91127.0,0.06584201]
[1767532221468,0.06583944,91131.0,91124.0,0.05486984]
[1767532221671,0.01097333,91130.0,91125.0,0.01097393]
[1767532221826,0.06584077,91129.0,91125.0,0.01097393]
[1767532222031,0.01097357,91128.0,91123.0,0.01097417]
[1767532222237,0.01097345,91129.0,91124.0,0.01097405]
[1767532222656,0.01097345,91129.0,91125.0,0.01097393]
[1767532223371,0.06584121,91129.0,91125.0,0.01097393]
[1767532223673,0.01097345,91129.0,91125.0,0.01097393]
[1767532224166,0.06584082,91129.0,91124.0,0.06584408]
[1767532224609,0.06584019,91130.0,91125.0,0.06584323]
[1767532224731,0.06584019,91130.0,91126.0,0.01097381]
[1767532224950,0.06584019,91130.0,91125.0,0.06584323]
[1767532225187,0.06584019,91130.0,91126.0,0.04610454]
[1767532225398,0.06583957,91131.0,91126.0,0.04610454]
[1767532225604,0.05486712,91130.0,91126.0,0.04610454]
[1767532226004,0.06584045,91130.0,91126.0,0.04610454]
[1767532226403,0.06584045,91130.0,91126.0,0.05707835]
[1767532226611,0.06583856,91132.0,91127.0,0.11194651]
[1767532226813,0.06583856,91132.0,91130.0,0.000999]
[1767532226814,0.06576973,91132.0,91130.0,0.000999]
[1767532226990,0.01097321,91131.0,91128.0,0.04610454]
[1767532227391,0.06576973,91132.0,91128.0,0.04610454]
[1767532227951,0.06583839,91133.0,91132.0,0.000999]
[1767532227952,0.01097297,91133.0,91132.0,0.000999]
[1767532228272,0.01097297,91133.0,91129.0,0.05707799]
[1767532228722,0.01097297,91133.0,91129.0,0.03221837]
[1767532229103,0.06583828,91133.0,91129.0,0.03221837]
[1767532229302,0.06583828,91133.0,91129.0,0.04319182]
[1767532230261,0.06583828,91133.0,91129.0,0.01097345]
[1767532230623,0.06576945,91133.0,91129.0,0.01097345]
[1767532231028,0.08779722,91134.0,91129.0,0.0658407]
[1767532231280,0.02196,91134.0,91130.0,0.06583952]
[1767532231481,0.03293285,91134.0,91130.0,0.00740049]
[1767532232040,0.08779744,91134.0,91129.0,0.0658407]
[1767532233826,0.01097297,91133.0,91129.0,0.01097345]
[1767532235189,0.06068312,91133.0,91128.0,0.0658414]
[1767532235528,0.04871115,91133.0,91129.0,0.05486685]
[1767532236295,0.04871115,91133.0,91129.0,0.0658403]
[1767532236627,0.04871115,91133.0,91130.0,0.0658396]
[1767532237021,0.04871115,91133.0,91131.0,0.05486603]
[1767532237179,0.01097213,91140.0,91131.0,0.05486603]
[1767532237180,0.06583212,91141.0,91135.0,0.01097273]
[1767532237390,0.06583326,91140.0,91135.0,0.01097273]
[1767532237595,0.01097249,91137.0,91132.0,0.01097309]
[1767532237977,0.01097237,91138.0,91134.0,0.01097285]
[1767532238088,0.06583434,91138.0,91133.0,0.01097297]
[1767532238294,0.01097237,91138.0,91129.0,0.05486672]
[1767532238495,0.05486504,91133.0,91128.0,0.01097357]
[1767532238695,0.06583739,91134.0,91129.0,0.01097345]
[1767532239310,0.01097297,91133.0,91129.0,0.01097345]
[1767532239531,0.01097297,91133.0,91128.0,0.06584131]
[1767532239732,0.01097297,91133.0,91129.0,0.01097345]
[1767532239938,0.01097273,91135.0,91130.0,0.05764084]
[1767532240138,0.06583626,91136.0,91133.0,0.000999]
[1767532240741,0.06583498,91137.0,91132.0,0.06583854]
[1767532241159,0.01097249,91137.0,91133.0,0.01097297]
[1767532241343,0.01583304,91140.0,91139.0,0.04666751]
[1767532241566,0.01583304,91140.0,91137.0,0.000999]
[1767532241567,0.03779304,91140.0,91137.0,0.000999]
[1767532241769,0.03293213,91140.0,91137.0,0.000999]
[1767532242064,0.03293213,91140.0,91135.0,0.06583585]
[1767532242383,0.03293213,91140.0,91136.0,0.01097261]
[1767532242706,0.01097225,91139.0,91134.0,0.11250412]
[1767532243047,0.01097225,91139.0,91135.0,0.04666751]
[1767532243250,0.01097237,91138.0,91135.0,0.04666751]
[1767532243466,0.01090354,91138.0,91135.0,0.04666751]
[1767532243694,0.06583402,91139.0,91135.0,0.04666751]
[1767532244691,0.06583439,91138.0,91135.0,0.04666751]
[1767532244864,0.03293237,91138.0,91135.0,0.04666751]
[1767532245072,0.02196,91138.0,91135.0,0.04666751]
[1767532245673,0.03293237,91138.0,91134.0,0.06583697]
[1767532245873,0.03293237,91138.0,91134.0,0.01097285]
[1767532246460,0.01097249,91137.0,91132.0,0.11250603]
[1767532246666,0.01097249,91137.0,91133.0,0.01097297]
[1767532246894,0.01097249,91137.0,91133.0,0.06583783]
[1767532247687,0.02196,91138.0,91137.0,0.000999]
[1767532247866,0.02196,91138.0,91137.0,0.00071337]
[1767532248070,0.03293237,91138.0,91134.0,0.05764036]
[1767532248548,0.02196,91138.0,91134.0,0.06583698]
[1767532249725,0.02196,91138.0,91135.0,0.06583638]
[1767532250444,0.021532,91138.0,91135.0,0.01097273]
[1767532251636,0.021532,91138.0,91135.0,0.06583633]
[1767532252045,0.021532,91138.0,91135.0,0.06583634]
[1767532252771,0.021532,91138.0,91136.0,0.05486287]
[1767532253094,0.021532,91138.0,91136.0,0.054863]
[1767532253418,0.021532,91138.0,91135.0,0.06583531]
[1767532254229,0.021532,91138.0,91136.0,0.05486288]
[1767532254432,0.02146316,91138.0,91136.0,0.05486288]
[1767532255253,0.02146316,91138.0,91135.0,0.06583531]
[1767532256414,0.02146316,91138.0,91136.0,0.05486287]
[1767532256720,0.02146316,91138.0,91135.0,0.06583531]
[1767532257542,0.000999,91135.0,91134.0,0.06583596]
[1767532257754,0.01097249,91137.0,91130.0,0.06583961]
[1767532257992,0.05486306,91136.0,91130.0,0.06583961]
[1767532258644,0.01097285,91134.0,91130.0,0.01097333]
[1767532258852,0.01097285,91134.0,91130.0,0.01004233]
[1767532259617,0.06583715,91134.0,91130.0,0.01004233]
[1767532259810,0.01097285,91134.0,91130.0,0.01004233]
[1767532260292,0.01097273,91135.0,91131.0,0.01097321]
[1767532260511,0.06583545,91137.0,91132.0,0.06583855]
[1767532260755,0.06583545,91137.0,91133.0,0.01097297]
[1767532261991,0.06583545,91137.0,91132.0,0.05194181]
[1767532262331,0.06583545,91137.0,91133.0,0.01097297]
[1767532263080,0.01097249,91137.0,91133.0,0.06583779]
[1767532263277,0.06583503,91137.0,91132.0,0.04354559]
[1767532264296,0.01097249,91137.0,91133.0,0.06583778]
[1767532264495,0.08729747,91138.0,91133.0,0.06583778]
[1767532264911,0.02146316,91138.0,91134.0,0.06583689]
[1767532266640,0.02146316,91138.0,91135.0,0.01097273]
[1767532267198,0.02146316,91138.0,91134.0,0.06583689]
[1767532267829,0.08729746,91138.0,91134.0,0.01097285]
[1767532268214,0.08729746,91138.0,91134.0,0.0658371]
[1767532268808,0.02146316,91138.0,91134.0,0.0658371]
[1767532269054,0.02146316,91138.0,91135.0,0.06583628]
[1767532269291,0.02146316,91138.0,91134.0,0.0658371]
[1767532270178,0.02146316,91138.0,91135.0,0.01097273]
[1767532271036,0.02146316,91138.0,91137.0,0.05486245]
[1767532273046,0.02146316,91138.0,91137.0,0.04828051]
[1767532273684,0.02046416,91138.0,91137.0,0.04828051]
[1767532274801,0.02046416,91138.0,91137.0,0.04728151]
[1767532275591,0.02046416,91138.0,91137.0,0.04389627]
[1767532278373,1e-08,91138.0,91137.0,0.04389627]
[1767532278578,0.06582712,91148.0,91143.0,0.06583016]
[1767532278736,0.06582794,91147.0,91142.0,0.05485924]
[1767532279067,0.06582712,91148.0,91142.0,0.05485924]
[1767532279068,0.06582712,91148.0,91143.0,0.01097176]
[1767532279421,0.02196,91147.0,91143.0,0.01097176]
[1767532279823,0.03293128,91147.0,91140.0,0.18772574]
[1767532280140,0.03293128,91147.0,91142.0,0.05485904]
[1767532280359,0.03293128,91147.0,91142.0,0.06583093]
[1767532280562,0.03293128,91147.0,91143.0,0.01097176]
[1767532280937,0.01097128,91147.0,91143.0,0.01097176]
[1767532281256,0.02196,91146.0,91142.0,0.01097189]
[1767532281713,0.02196,91146.0,91142.0,0.06583125]
[1767532281896,0.0329314,91146.0,91142.0,0.01097189]
[1767532282296,0.0329314,91146.0,91142.0,0.00459099]
[1767532282516,0.0329314,91146.0,91141.0,0.06583104]
[1767532282718,0.02196,91146.0,91142.0,0.06583125]
[1767532283233,0.08778855,91146.0,91141.0,0.06583104]
[1767532283638,0.02196,91146.0,91142.0,0.01097189]
[1767532284342,0.02196,91146.0,91142.0,0.06583124]
[1767532284903,0.08778845,91146.0,91139.0,0.11192089]
[1767532285101,0.05485807,91145.0,91140.0,0.11192031]
[1767532285713,0.01097164,91144.0,91140.0,0.05705985]
[1767532285913,0.01097164,91144.0,91140.0,0.04608772]
[1767532286267,0.06582959,91145.0,91140.0,0.05705985]
[1767532287201,0.0658299,91144.0,91140.0,0.04608772]
[1767532287603,0.01097176,91143.0,91138.0,0.0658341]
[1767532288006,0.0658299,91144.0,91139.0,0.01097225]
[1767532288825,0.02196,91143.0,91139.0,0.05705997]
[1767532289187,0.02196,91143.0,91139.0,0.03400764]
[1767532289188,0.01097189,91142.0,91139.0,0.03400764]
[1767532289303,0.08779108,91143.0,91139.0,0.03400764]
[1767532289704,0.08779063,91143.0,91138.0,0.0658341]
[1767532289936,0.03293176,91143.0,91139.0,0.01097225]
[1767532290826,0.02196,91142.0,91139.0,0.01097225]
[1767532291425,0.02196,91142.0,91139.0,0.11121739]
[1767532291858,0.01097176,91143.0,91139.0,0.0563564]
[1767532292080,0.02196,91141.0,91139.0,0.0563564]
[1767532292283,0.020961,91141.0,91139.0,0.0563564]
[1767532293285,0.020961,91141.0,91139.0,0.04538415]
[1767532293942,0.01097176,91143.0,91139.0,0.04538415]
[1767532294142,0.02196,91141.0,91139.0,0.0205218]
[1767532295789,0.02196,91141.0,91139.0,0.07538297]
[1767532296714,0.02196,91141.0,91139.0,0.04304652]
[1767532296912,0.02196,91141.0,91140.0,0.05486065]
[1767532297294,0.02196,91141.0,91139.0,0.04304652]
[1767532297499,0.02196,91141.0,91140.0,0.05486065]
[1767532298491,0.02196,91141.0,91139.0,0.04304652]
[1767532298931,0.02196,91141.0,91140.0,0.05486065]
[1767532299308,0.02196,91141.0,91139.0,0.04304652]
[1767532300313,0.02196,91141.0,91139.0,0.09002602]
[1767532300521,0.02196,91141.0,91139.0,0.04304652]
[1767532301125,0.02196,91141.0,91137.0,0.0658344]
[1767532301320,0.02196,91141.0,91138.0,0.01097237]
[1767532301762,0.02196,91141.0,91139.0,0.05486109]
[1767532301966,0.02196,91141.0,91140.0,0.0548604]
[1767532302180,0.02196,91141.0,91140.0,0.06583253]
[1767532303765,0.06582863,91146.0,91140.0,0.06583253]
[1767532303766,0.02196,91143.0,91140.0,0.11281203]
[1767532304188,0.02196,91143.0,91140.0,0.08976058]
[1767532305510,0.02196,91143.0,91140.0,0.05795163]
[1767532306719,0.02196,91143.0,91140.0,0.01097213]
[1767532307536,0.02196,91143.0,91140.0,0.05795163]
[1767532308036,0.02196,91143.0,91140.0,0.11281209]
[1767532308484,0.02196,91143.0,91141.0,0.0469795]
[1767532308692,0.02196,91143.0,91140.0,0.06583259]
[1767532308994,0.02196,91143.0,91140.0,0.11281209]
[1767532309344,0.02196,91143.0,91140.0,0.05695263]
[1767532310332,0.06582921,91145.0,91140.0,0.05695263]
[1767532310531,0.02196,91144.0,91140.0,0.05695263]
[1767532311422,0.02196,91144.0,91140.0,0.11181315]
[1767532311827,0.02196,91144.0,91141.0,0.0469795]
[1767532313775,0.02196,91144.0,91141.0,0.05795151]
[1767532313971,0.02196,91144.0,91142.0,0.0469795]
[1767532314401,0.02196,91144.0,91141.0,0.0658318]
[1767532314602,0.02196,91145.0,91142.0,0.0469795]
[1767532315249,0.02196,91145.0,91141.0,0.01097201]
[1767532315499,0.02196,91145.0,91141.0,0.06583187]
[1767532315702,0.03293152,91145.0,91141.0,0.01097201]
[1767532315928,0.08778916,91145.0,91140.0,0.01097213]
[1767532316233,0.01097176,91143.0,91138.0,0.06583368]
[1767532316437,0.01097176,91143.0,91139.0,0.01097225]
[1767532316597,0.06582998,91144.0,91139.0,0.01097225]
[1767532318011,0.09977685,91144.0,91139.0,0.06583337]
[1767532318419,0.06582998,91144.0,91139.0,0.06583337]
[1767532319526,0.01097164,91144.0,91139.0,0.06583337]
[1767532319677,0.12173705,91145.0,91139.0,0.06583337]
[1767532319892,0.08779018,91145.0,91139.0,0.06583337]
[1767532320093,0.01097164,91144.0,91140.0,0.01097213]
[1767532320399,0.06583004,91144.0,91139.0,0.11355458]
[1767532320739,0.06582999,91144.0,91140.0,0.04772121]
[1767532320938,0.06582999,91144.0,91139.0,0.06583337]
[1767532321140,0.06582999,91144.0,91139.0,0.0318865]
[1767532322320,0.06582999,91144.0,91139.0,0.04285875]
[1767532322494,0.06582999,91144.0,91139.0,0.03670551]
[1767532322804,0.06583,91144.0,91139.0,0.03670551]
[1767532323007,0.08779018,91145.0,91140.0,0.01097213]
[1767532323146,0.06583018,91144.0,91139.0,0.01097225]
[1767532323352,0.02196,91145.0,91144.0,0.000999]
[1767532323790,0.01097176,91143.0,91138.0,0.06583422]
[1767532323991,0.06583085,91143.0,91138.0,0.06583422]
[1767532324198,0.01097176,91143.0,91138.0,0.06583422]
[1767532324530,0.06583103,91143.0,91138.0,0.04096261]
[1767532325315,0.01583103,91143.0,91139.0,0.04772121]
[1767532325460,0.06583041,91144.0,91139.0,0.04772121]
[1767532325664,0.06583041,91144.0,91139.0,0.05869346]
[1767532325913,0.01097176,91143.0,91139.0,0.04772121]
[1767532326289,0.06583041,91144.0,91140.0,0.04772121]
[1767532326707,0.06583072,91143.0,91140.0,0.04772121]
[1767532326909,0.01097176,91143.0,91140.0,0.04772121]
[1767532328333,0.01097164,91144.0,91140.0,0.05869334]
[1767532328523,0.05485765,91145.0,91143.0,0.000999]
[1767532328866,0.0877885,91146.0,91140.0,0.11355384]
[1767532328867,0.02196,91146.0,91142.0,0.01097189]
[1767532328989,0.02196,91146.0,91142.0,0.06583115]
[1767532329202,0.0109708,91151.0,91145.0,0.01097152]
[1767532329404,0.02196,91150.0,91145.0,0.04772121]
[1767532329639,0.23038126,91154.0,91144.0,0.06582936]
[1767532329640,0.01097044,91154.0,91150.0,0.000999]
[1767532329846,0.02196,91153.0,91150.0,0.04872021]
[1767532330060,0.02196,91153.0,91149.0,0.05485506]
[1767532330273,0.02196,91153.0,91148.0,0.06582653]
[1767532330620,0.02196,91153.0,91150.0,0.01097092]
[1767532330840,0.02232119,91153.0,91149.0,0.06582618]
[1767532331246,0.01097068,91152.0,91147.0,0.0658276]
[1767532331437,0.01097068,91152.0,91148.0,0.01097116]
[1767532331644,0.08814463,91153.0,91148.0,0.06582697]
[1767532332070,0.02232119,91153.0,91149.0,0.01097104]
[1767532332297,0.02232119,91153.0,91149.0,0.06582584]
[1767532332686,0.02232119,91153.0,91149.0,0.11354705]
[1767532333002,0.02232119,91153.0,91150.0,0.01097092]
[1767532333203,0.00036119,91153.0,91150.0,0.06582547]
[1767532333366,0.03293032,91155.0,91153.0,0.00063781]
[1767532333565,0.02196,91155.0,91151.0,0.0109708]
[1767532333972,0.02196,91155.0,91151.0,0.0043917]
[1767532334181,0.02196,91155.0,91151.0,0.05485397]
[1767532334357,0.08778131,91156.0,91152.0,0.04772121]
[1767532334556,0.08778131,91156.0,91151.0,0.04827463]
[1767532334799,0.01097032,91155.0,91151.0,0.0109708]
[1767532334968,0.01097032,91155.0,91150.0,0.06582547]
[1767532335169,0.000361,91150.0,91148.0,0.05869237]
[1767532335395,0.00027265,91150.0,91148.0,0.05869237]
[1767532335833,0.06582386,91153.0,91148.0,0.11354815]
[1767532336210,0.06582386,91153.0,91148.0,0.06582694]
[1767532336445,0.06582386,91153.0,91146.0,0.05485654]
[1767532336620,0.06582386,91153.0,91146.0,0.02192008]
[1767532336781,0.06582386,91153.0,91147.0,0.0318068]
[1767532337118,0.06582386,91153.0,91148.0,0.04772121]
[1767532337328,0.06582386,91153.0,91148.0,0.1135482]
[1767532337486,0.01097068,91152.0,91149.0,0.04772121]
[1767532338799,0.01102611,91152.0,91149.0,0.04772121]
[1767532339214,0.06587966,91152.0,91149.0,0.04772121]
[1767532339433,0.01102611,91152.0,91149.0,0.04772121]
[1767532339638,5.543e-05,91152.0,91149.0,0.04772121]
[1767532340606,0.01102611,91152.0,91149.0,0.04772121]
[1767532340810,0.06587964,91152.0,91149.0,0.04772121]
[1767532341452,0.06587964,91152.0,91149.0,0.04744921]
[1767532342367,0.06587964,91152.0,91148.0,0.04772121]
[1767532342552,0.06582386,91153.0,91152.0,0.00094357]
[1767532342734,0.06582386,91153.0,91149.0,0.04772121]
[1767532342735,0.06582386,91153.0,91149.0,0.05869225]
[1767532342933,0.0658228,91154.0,91149.0,0.05869225]
[1767532343491,0.01097056,91153.0,91149.0,0.04772121]
[1767532343644,0.01097056,91153.0,91149.0,0.05869225]
[1767532343852,0.0658228,91154.0,91149.0,0.05869225]
[1767532344503,0.01097032,91155.0,91150.0,0.05869213]
[1767532344710,0.0329302,91156.0,91152.0,0.04772121]
[1767532344910,0.08778141,91156.0,91152.0,0.04772121]
[1767532345626,0.01097032,91155.0,91152.0,0.04772121]
[1767532346276,0.08778141,91156.0,91152.0,0.04772121]
[1767532346929,0.08778126,91156.0,91152.0,0.04772121]
[1767532347133,0.06582126,91156.0,91152.0,0.04772121]
[1767532347339,0.02196,91155.0,91152.0,0.04772121]
[1767532347512,0.06582126,91156.0,91152.0,0.04772121]
[1767532347722,0.08778198,91155.0,91152.0,0.04772121]
[1767532348291,0.04875016,91158.0,91157.0,0.04772121]
[1767532348486,0.06582024,91158.0,91153.0,0.05869177]
[1767532349047,0.01097008,91157.0,91152.0,0.06582368]
[1767532349247,0.06582024,91158.0,91153.0,0.06582321]
[1767532349540,0.0109702,91156.0,91151.0,0.06582425]
[1767532349759,0.01097032,91155.0,91151.0,0.0109708]
[1767532349948,0.01097032,91155.0,91150.0,0.01097092]
[1767532349949,0.01097044,91154.0,91150.0,0.01097092]
[1767532350325,0.01097056,91153.0,91149.0,0.01097104]
[1767532351134,0.06582351,91153.0,91148.0,0.06582694]
[1767532351399,0.01097189,91142.0,91137.0,0.02196]
[1767532351614,0.05486128,91139.0,91137.0,0.02232119]
[1767532351865,0.06583261,91141.0,91139.0,0.000999]
[1767532352072,0.05486065,91140.0,91139.0,0.000999]
[1767532352290,0.01097213,91140.0,91137.0,0.02232119]
[1767532352922,0.06583261,91141.0,91137.0,0.02232119]
[1767532353399,0.0658329,91140.0,91137.0,0.02232119]
[1767532354005,0.01097201,91141.0,91137.0,0.02232119]
[1767532354438,0.01097189,91142.0,91137.0,0.07718306]
[1767532354647,0.01097189,91142.0,91141.0,0.000999]
[1767532354846,0.01097189,91142.0,91137.0,0.12554139]
[1767532355023,0.0658315,91142.0,91137.0,0.08165201]
[1767532355380,0.01097201,91141.0,91137.0,0.08165201]
[1767532355987,0.01097201,91141.0,91137.0,0.03329368]
[1767532356878,0.01097201,91141.0,91136.0,0.07108896]
[1767532357084,0.01133294,91141.0,91136.0,0.07108896]
[1767532357301,0.00036093,91141.0,91137.0,0.04279317]
[1767532357530,0.01097189,91142.0,91141.0,0.00063807]
[1767532357730,0.01097189,91142.0,91141.0,0.0006935]
[1767532357941,0.06583168,91143.0,91141.0,5.543e-05]
[1767532358119,0.06574124,91143.0,91141.0,5.543e-05]
[1767532360528,0.05485945,91142.0,91141.0,5.543e-05]
[1767532360733,0.06574124,91143.0,91141.0,4.3e-07]
[1767532361130,0.01088132,91143.0,91141.0,4.3e-07]
[1767532361342,0.0657404,91143.0,91141.0,4.3e-07]
[1767532362169,0.05485945,91142.0,91141.0,4.3e-07]
[1767532363038,0.0657404,91143.0,91136.0,0.01097261]
[1767532363039,0.01088132,91143.0,91136.0,0.01097261]
[1767532363246,0.01088132,91143.0,91138.0,0.01097237]
[1767532363247,0.01097189,91142.0,91138.0,0.01097237]
[1767532363653,0.06574022,91143.0,91138.0,0.06583415]
[1767532364098,0.01097189,91142.0,91137.0,0.06583489]
[1767532364605,0.06583139,91142.0,91137.0,0.06583489]
[1767532364826,0.01097189,91142.0,91138.0,0.01097237]
[1767532365158,0.06574022,91143.0,91138.0,0.11419248]
[1767532365378,0.06574022,91143.0,91138.0,0.06583415]
[1767532366407,0.06574022,91143.0,91139.0,0.01097225]
[1767532366704,0.01088132,91143.0,91139.0,0.06583349]
[1767532366908,0.06583001,91144.0,91139.0,0.06583349]
[1767532367337,0.06583001,91144.0,91139.0,0.0445438]
[1767532367861,0.06583001,91144.0,91139.0,0.01097225]
[1767532368189,0.06583065,91143.0,91138.0,0.11419248]
[1767532368431,0.01097176,91143.0,91139.0,0.05933058]
[1767532368807,0.01097176,91143.0,91139.0,0.04835833]
[1767532369542,0.0658318,91142.0,91139.0,0.04805233]
[1767532369760,0.01097189,91142.0,91139.0,0.04805233]
[1767532370111,0.06583138,91142.0,91139.0,0.04805233]
[1767532370513,0.05486009,91141.0,91139.0,0.04805233]
[1767532371122,0.06583234,91142.0,91139.0,0.04805233]
[1767532371854,0.05486032,91141.0,91139.0,0.04805233]
[1767532372390,0.06583234,91142.0,91139.0,0.04497546]
[1767532372538,0.01097201,91141.0,91137.0,0.06583483]
[1767532373198,0.06583234,91142.0,91137.0,0.06583483]
[1767532373317,0.06583166,91143.0,91138.0,0.06583415]
[1767532373872,0.01097189,91142.0,91138.0,0.01097237]
[1767532374571,0.06583166,91143.0,91138.0,0.11419234]
[1767532375918,0.06583166,91143.0,91139.0,0.01097225]
[1767532377601,0.06583012,91144.0,91139.0,0.06583339]
[1767532377800,0.01097164,91144.0,91140.0,0.01097213]
[1767532378007,0.06583012,91144.0,91139.0,0.06583339]
[1767532378496,0.01097164,91144.0,91140.0,0.01097213]
[1767532378722,0.06582994,91144.0,91139.0,0.06583339]
[1767532378903,0.06582994,91144.0,91139.0,0.11419172]
[1767532379235,0.06582994,91144.0,91137.0,0.01097249]
[1767532379442,0.06582994,91144.0,91138.0,0.0548614]
[1767532379851,0.01097164,91144.0,91140.0,0.01097213]
[1767532380416,0.06582865,91146.0,91140.0,0.01097213]
[1767532380643,0.06582938,91145.0,91140.0,0.06583269]
[1767532381019,0.0109714,91146.0,91141.0,0.06583184]
[1767532381203,0.06582785,91147.0,91142.0,0.01097189]
[1767532381762,0.0109714,91146.0,91142.0,0.01097189]
[1767532381901,0.06582785,91147.0,91142.0,0.06583132]
[1767532382338,0.01097092,91150.0,91145.0,0.01097152]
[1767532382339,0.03293092,91150.0,91145.0,0.01097152]
[1767532382578,0.03293092,91150.0,91145.0,0.05620813]
[1767532382779,0.03293092,91150.0,91146.0,0.0109714]
[1767532383156,0.01097056,91153.0,91148.0,0.01097116]
[1767532383364,0.02196,91152.0,91149.0,0.06582616]
[1767532383565,0.02196,91152.0,91148.0,0.06582671]
[1767532383806,0.02196,91152.0,91149.0,0.06582582]
[1767532384778,0.02196,91152.0,91150.0,0.05485451]
[1767532386911,0.02196,91152.0,91151.0,0.05485403]
[1767532388223,0.02196,91152.0,91150.0,0.05485451]
[1767532389399,0.02196,91152.0,91150.0,0.06582543]
[1767532389624,0.0109702,91156.0,91151.0,0.0109708]
[1767532390023,0.0109702,91156.0,91151.0,0.0658248]
[1767532390024,0.01097032,91155.0,91151.0,0.0658248]
[1767532390340,0.05485358,91152.0,91147.0,0.01097128]
[1767532390492,0.0109708,91151.0,91146.0,0.11106505]
[1767532390687,0.01097092,91150.0,91146.0,0.04523661]
[1767532390902,0.01097092,91150.0,91146.0,0.04423761]
[1767532391123,0.01097092,91150.0,91145.0,0.05485717]
[1767532391328,0.01097104,91149.0,91144.0,0.01097164]
[1767532391531,0.01097104,91149.0,91145.0,0.01097152]
[1767532391738,0.06582497,91151.0,91146.0,0.0109714]
[1767532392077,0.06582466,91152.0,91147.0,0.01097128]
[1767532392284,0.06582414,91152.0,91147.0,0.03430746]
[1767532392877,0.06582414,91152.0,91146.0,0.06582842]
[1767532393395,0.06582414,91152.0,91147.0,0.06582769]
[1767532394346,0.06582497,91151.0,91146.0,0.06582842]
[1767532395212,0.06582497,91151.0,91145.0,0.01097152]
[1767532395213,0.06582555,91150.0,91145.0,0.01097152]
[1767532395594,0.06582555,91150.0,91145.0,0.06582913]
[1767532395795,0.06582555,91150.0,91145.0,0.03422039]
[1767532395999,0.06582497,91151.0,91146.0,0.0658284]
[1767532396226,0.0109708,91151.0,91147.0,0.01097128]